bitfinex-derivatives/quotes_SOLF0:USTF0_20241029
["timestamp","ask_amount","ask_price","bid_price","bid_amount"]
[1730176225503,4.48,182.58,182.47,5.4847]
[1730176225695,10.38270963,182.58,182.52,5.90270963]
[1730176226099,5.90270963,182.57,182.52,2.7417]
[1730176226400,5.90270963,182.55,182.49,8.35590963]
[1730176227301,5.90270963,182.54,182.49,2.4532]
[1730176227497,4.48,182.53,182.49,1.1697]
[1730176227699,5.90270963,182.52,182.48,5.90270963]
[1730176228097,4.48,182.53,182.48,8.64490963]
[1730176229605,4.48,182.53,182.51,2.7418]
[1730176230110,4.48,182.53,182.51,5.90270963]
[1730176230308,4.48,182.53,182.52,2.7417]
[1730176230813,4.46,182.53,182.52,2.7417]
[1730176232308,2.7405,182.61,182.52,5.90270963]
[1730176232506,10.36270963,182.6,182.54,5.90270963]
[1730176233104,4.46,182.6,182.56,5.90270963]
[1730176233703,4.46,182.6,182.57,2.7408]
[1730176238113,4.46,182.6,182.56,2.741]
[1730176238312,4.46,182.6,182.55,5.90270963]
[1730176238913,10.36270963,182.6,182.57,2.7409]
[1730176239815,10.36270963,182.6,182.54,5.90270963]
[1730176239816,8.64350963,182.58,182.54,2.7413]
[1730176240318,5.90270963,182.56,182.47,1.2432]
[1730176240513,5.90270963,182.53,182.51,2.7417]
[1730176240813,5.90270963,182.52,182.47,1.2432]
[1730176241318,5.90270963,182.52,182.47,7.14590963]
[1730176242312,5.90270963,182.52,182.49,2.742]
[1730176242814,5.90270963,182.52,182.47,1.2432]
[1730176243014,5.90270963,182.52,182.45,5.90270963]
[1730176244316,5.90270963,182.52,182.48,2.7423]
[1730176245117,5.90270963,182.52,182.46,5.90270963]
[1730176246427,8.64440963,182.52,182.48,2.7422]
[1730176246814,5.90270963,182.52,182.48,2.7422]
[1730176247818,5.90270963,182.52,182.43,1.178]
[1730176248012,7.2016,182.53,182.43,1.178]
[1730176248013,5.90270963,182.49,182.43,1.178]
[1730176248218,5.90270963,182.47,182.43,1.178]
[1730176248418,5.90270963,182.47,182.41,5.90270963]
[1730176248419,4.46,182.46,182.41,5.90270963]
[1730176248615,4.46,182.46,182.44,2.7429]
[1730176249518,4.46,182.46,182.45,2.7428]
[1730176249717,4.46,182.46,182.43,5.90270963]
[1730176250119,4.46,182.46,182.44,2.7428]
[1730176252716,4.46,182.46,182.45,2.7428]
[1730176253619,59.22,182.55,182.47,2.7424]
[1730176253620,5.90270963,182.53,182.47,2.7424]
[1730176253827,4.46,182.52,182.47,8.64510963]
[1730176254021,4.46,182.51,182.47,5.90270963]
[1730176254230,4.46,182.51,182.49,8.64470963]
[1730176255424,8.64410963,182.54,182.49,8.64470963]
[1730176255626,4.46,182.53,182.49,8.64470963]
[1730176259925,5.90270963,182.51,182.45,5.90270963]
[1730176260421,5.90270963,182.51,182.48,2.7423]
[1730176261934,2.7417,182.52,182.48,2.7423]
[1730176262126,8.64440963,182.52,182.48,2.7423]
[1730176267039,4.46,182.53,182.47,2.7424]
[1730176267040,5.90270963,182.5,182.47,2.7424]
[1730176267745,5.90270963,182.49,182.46,2.7426]
[1730176267936,4.46,182.48,182.46,2.7426]
[1730176268428,4.46,182.48,182.44,5.90270963]
[1730176268429,4.46,182.48,182.42,7.10580963]
[1730176268632,4.46,182.48,182.44,2.7428]
[1730176269230,4.46,182.48,182.41,5.90270963]
[1730176269430,4.46,182.48,182.37,1.2499]
[1730176269431,5.90270963,182.45,182.37,1.2499]
[1730176269639,5.90270963,182.44,182.38,5.90270963]
[1730176269835,4.46,182.43,182.39,2.7436]
[1730176270035,4.46,182.43,182.38,5.90270963]
[1730176270232,4.46,182.43,182.4,5.90270963]
[1730176270844,4.46,182.43,182.41,5.90270963]
[1730176271238,4.46,182.43,182.41,8.64600963]
[1730176272039,4.46,182.43,182.42,2.7432]
[1730176277550,1.2513,182.47,182.42,5.90270963]
[1730176277761,4.46,182.46,182.43,2.743]
[1730176281844,3.9938,182.47,182.43,2.743]
[1730176282044,4.46,182.45,182.43,2.743]
[1730176292556,2.7431,182.43,182.41,5.90270963]
[1730176292758,10.36270963,182.45,182.36,2.4755]
[1730176292966,10.36270963,182.45,182.39,5.90270963]
[1730176293156,13.10550963,182.45,182.4,2.7434]
[1730176293963,7.2028,182.45,182.4,8.64610963]
[1730176294864,7.2028,182.45,182.4,2.7434]
[1730176295164,7.2028,182.45,182.41,5.90270963]
[1730176296662,2.7426,182.46,182.42,8.64590963]
[1730176296862,4.44,182.45,182.42,8.64590963]
[1730176305667,4.44,182.45,182.42,2.7432]
[1730176308469,7.1828,182.45,182.42,2.7432]
[1730176315980,7.1828,182.45,182.42,8.64590963]
[1730176317080,7.1828,182.45,182.4,5.90270963]
[1730176317276,7.1828,182.45,182.41,2.7433]
[1730176317783,7.1828,182.45,182.42,8.64590963]
[1730176317987,4.44,182.45,182.42,8.64590963]
[1730176318494,2.7429,182.44,182.41,2.7433]
[1730176318679,4.44,182.45,182.41,2.7433]
[1730176319491,7.1828,182.45,182.41,2.7433]
[1730176319881,7.1828,182.45,182.41,8.64600963]
[1730176321191,7.1828,182.45,182.41,2.7433]
[1730176321888,4.44,182.45,182.42,5.90270963]
[1730176322490,4.44,182.45,182.43,2.7431]
[1730176322996,4.44,182.45,182.44,2.7429]
[1730176323494,2.7423,182.48,182.44,2.7429]
[1730176323693,4.44,182.45,182.44,2.7429]
[1730176324892,4.44,182.45,182.42,2.7431]
[1730176327388,59.26,182.49,182.46,2.7425]
[1730176327593,4.44,182.48,182.46,8.64520963]
[1730176329300,4.44,182.48,182.46,5.90270963]
[1730176329499,4.44,182.48,182.45,2.7426]
[1730176332099,5.90270963,182.47,182.39,1.2759]
[1730176332589,2.7427,182.46,182.42,2.7432]
[1730176332791,5.90270963,182.47,182.41,5.90270963]
[1730176332994,5.90270963,182.46,182.41,5.90270963]
[1730176333294,5.90270963,182.44,182.39,7.17860963]
[1730176333496,10.34270963,182.43,182.4,2.7435]
[1730176333804,10.34270963,182.43,182.37,1.2962]
[1730176333805,4.44,182.42,182.37,1.2962]
[1730176334187,4.44,182.42,182.38,2.7437]
[1730176334387,4.44,182.42,182.37,7.19890963]
[1730176334593,4.44,182.42,182.38,1.37237738]
[1730176334793,4.44,182.42,182.37,7.19890963]
[1730176334994,4.44,182.42,182.38,4.11606484]
[1730176335301,4.44,182.42,182.38,2.7437]
[1730176336998,7.1832,182.42,182.37,4.04]
[1730176337309,7.1832,182.42,182.37,8.64650963]
[1730176337500,4.44,182.42,182.36,1.2526]
[1730176337700,4.44,182.42,182.37,6.28047855]
[1730176338001,4.44,182.42,182.36,1.2526]
[1730176338301,4.44,182.42,182.38,5.90270963]
[1730176338604,4.44,182.42,182.38,8.64640963]
[1730176340208,4.44,182.42,182.39,2.7435]
[1730176342608,4.44,182.42,182.38,5.90270963]
[1730176343907,4.44,182.42,182.36,1.2526]
[1730176344203,4.44,182.42,182.37,5.90270963]
[1730176344407,4.44,182.42,182.39,2.7436]
[1730176346501,4.44,182.42,182.38,5.90270963]
[1730176347103,4.42,182.41,182.38,5.90270963]
[1730176347404,2.75660675,182.44,182.39,5.90270963]
[1730176347612,4.42,182.43,182.36,1.2526]
[1730176347800,2.67946919,182.46,182.43,5.90270963]
[1730176348001,4.42,182.45,182.43,5.90270963]
[1730176348402,2.7424,182.48,182.43,8.64560963]
[1730176348609,4.42,182.47,182.43,8.64560963]
[1730176349409,4.42,182.47,182.44,2.7429]
[1730176350609,4.42,182.47,182.43,5.90270963]
[1730176350809,59.26,182.49,182.43,5.90270963]
[1730176351007,4.42,182.48,182.43,5.90270963]
[1730176351198,5.90270963,182.48,182.44,2.7428]
[1730176351405,4.42,182.47,182.45,5.90270963]
[1730176351806,4.42,182.47,182.46,2.7426]
[1730176352209,59.26,182.49,182.46,5.90270963]
[1730176352404,59.26,182.49,182.48,8.64500963]
[1730176352597,63.68,182.49,182.48,8.64500963]
[1730176352803,63.68,182.49,182.48,2.7423]
[1730176353003,69.58270963,182.49,182.39,343.2613]
[1730176353212,69.58270963,182.49,182.45,2.7427]
[1730176355413,63.68,182.49,182.46,2.7426]
[1730176355714,63.68,182.49,182.44,5.90270963]
[1730176356105,63.68,182.49,182.47,2.7424]
[1730176356305,63.68,182.49,182.46,5.90270963]
[1730176356617,4.42,182.49,182.47,2.7425]
[1730176360108,4.42,182.49,182.45,5.90270963]
[1730176360318,5.90270963,182.48,182.39,343.2613]
[1730176360512,5.90270963,182.48,182.41,5.90270963]
[1730176360713,5.90270963,182.48,182.43,2.7429]
[1730176361408,8.64500963,182.48,182.43,2.743]
[1730176364021,5.90270963,182.48,182.41,5.90270963]
[1730176364223,4.42,182.47,182.43,5.90270963]
[1730176364421,4.42,182.46,182.43,5.90270963]
[1730176364824,4.42,182.46,182.44,2.7429]
[1730176367714,4.42,182.46,182.43,5.90270963]
[1730176368416,4.42,182.46,182.44,2.7428]
[1730176368815,4.42,182.46,182.43,5.90270963]
[1730176369015,4.42,182.46,182.43,8.64570963]
[1730176369716,4.42,182.46,182.43,2.743]
[1730176372218,4.42,182.46,182.43,8.64570963]
[1730176372929,4.42,182.46,182.43,2.743]
[1730176374128,4.42,182.46,182.42,2.7431]
[1730176374331,4.42,182.46,182.41,5.90270963]
[1730176375224,4.42,182.46,182.43,8.64570963]
[1730176379421,2.7419,182.51,182.46,2.7425]
[1730176379628,4.42,182.5,182.46,5.90270963]
[1730176379827,10.32270963,182.5,182.44,5.90270963]
[1730176380432,10.32270963,182.5,182.39,1.2613]
[1730176380433,4.42,182.5,182.39,1.2613]
[1730176380630,2.7423,182.48,182.43,8.64560963]
[1730176381428,4.42,182.5,182.44,5.90270963]
[1730176381742,4.42,182.5,182.39,1.2613]
[1730176381743,4.42,182.5,182.46,8.64530963]
[1730176383335,7.162,182.5,182.46,2.7426]
[1730176383836,13.06470963,182.5,182.46,2.7426]
[1730176385345,10.32270963,182.5,182.39,1.2613]
[1730176385638,8.64510963,182.48,182.44,2.7429]
[1730176386035,5.90270963,182.48,182.42,5.90270963]
[1730176386233,10.32270963,182.5,182.42,5.90270963]
[1730176387240,5.90270963,182.48,182.44,2.7428]
[1730176388245,8.64500963,182.48,182.44,2.7428]
[1730176390050,4.42,182.51,182.49,2.742]
[1730176390337,4.42,182.51,182.47,5.90270963]
[1730176390646,4.42,182.51,182.48,2.7422]
[1730176391037,4.42,182.51,182.47,5.90270963]
[1730176391233,4.42,182.51,182.49,2.742]
[1730176391437,4.42,182.51,182.47,5.90270963]
[1730176392534,65.14270963,182.53,182.47,5.90270963]
[1730176392738,4.42,182.52,182.47,5.90270963]
[1730176393645,4.42,182.52,182.49,2.7421]
[1730176393845,4.42,182.51,182.49,2.7421]
[1730176395343,4.42,182.51,182.48,2.7423]
[1730176398347,4.42,182.51,182.47,5.90270963]
[1730176398540,5.90270963,182.5,182.44,1.222]
[1730176398744,4.42,182.51,182.44,1.222]
[1730176398745,5.90270963,182.48,182.44,1.222]
[1730176399051,4.42,182.47,182.44,1.222]
[1730176399839,4.42,182.47,182.46,2.7426]
[1730176404455,4.42,182.47,182.44,5.90270963]
[1730176405050,4.42,182.47,182.45,2.7427]
[1730176405251,10.32270963,182.47,182.43,1.2909]
[1730176405442,10.32270963,182.47,182.41,87.86765384]
[1730176405649,10.32270963,182.47,182.42,5.90270963]
[1730176406254,10.32270963,182.47,182.43,2.743]
[1730176406656,4.42,182.47,182.43,2.743]
[1730176407155,10.32270963,182.47,182.43,2.743]
[1730176407356,10.32270963,182.47,182.42,5.90270963]
[1730176407550,10.32270963,182.47,182.41,87.86765384]
[1730176407757,10.32270963,182.47,182.41,93.77036347]
[1730176408354,13.06520963,182.47,182.42,2.7431]
[1730176409449,10.32270963,182.47,182.42,2.7431]
[1730176409655,2.7424,182.48,182.41,87.86765384]
[1730176409878,4.4,182.47,182.43,2.743]
[1730176410747,10.30270963,182.47,182.43,2.743]
[1730176412855,5.90270963,182.45,182.41,2.7432]
[1730176413256,5.90270963,182.45,182.38,5.90270963]
[1730176413656,5.90270963,182.45,182.41,2.7433]
[1730176414057,5.90270963,182.42,182.24,340.061]
[1730176414367,4.4,182.41,182.39,5.90270963]
[1730176414857,4.4,182.41,182.38,5.90270963]
[1730176415060,4.4,182.41,182.28,4.4]
[1730176415264,4.4,182.41,182.37,5.90270963]
[1730176416463,4.4,182.41,182.28,344.461]
[1730176416464,4.4,182.41,182.29,7.85062005]
[1730176416656,4.4,182.41,182.36,5.90270963]
[1730176416861,4.4,182.41,182.37,2.7439]
[1730176418457,4.4,182.41,182.29,340.061]
[1730176418663,5.90270963,182.4,182.35,2.7442]
[1730176419358,5.90270963,182.4,182.36,4.90882272]
[1730176419663,5.90270963,182.4,182.35,2.7442]
[1730176419866,5.90270963,182.4,182.36,6.27978662]
[1730176420056,5.90270963,182.4,182.35,2.7442]
[1730176420261,5.90270963,182.4,182.36,4.11651741]
[1730176420466,5.90270963,182.4,182.34,5.90270963]
[1730176420669,5.90270963,182.4,182.35,10.13646456]
[1730176420874,5.90270963,182.4,182.36,6.27872205]
[1730176421068,5.90270963,182.4,182.36,2.744]
[1730176422663,5.90270963,182.4,182.37,2.7439]
[1730176424662,5.90270963,182.4,182.35,5.90270963]
[1730176424868,10.30270963,182.41,182.39,2.7437]
[1730176425757,4.4,182.41,182.39,2.7437]
[1730176425961,10.32270963,182.43,182.32,4.42]
[1730176426175,5.90270963,182.41,182.36,5.90270963]
[1730176426475,10.32270963,182.41,182.36,5.90270963]
[1730176427862,4.42,182.41,182.37,5.90270963]
[1730176428063,4.42,182.41,182.4,2.7435]
[1730176434071,4.42,182.41,182.33,3.7892]
[1730176434280,5.90270963,182.34,182.33,2.7445]
[1730176434475,5.90270963,182.34,182.31,340.061]
[1730176434680,5.90270963,182.32,182.31,340.061]
[1730176434884,10.32270963,182.32,182.26,5.90270963]
[1730176435077,10.32270963,182.32,182.27,6.27934931]
[1730176435278,10.32270963,182.32,182.26,5.90270963]
[1730176436078,10.32270963,182.32,182.31,2.7449]
[1730176436475,10.32270963,182.32,182.3,2.745]
[1730176436679,5.90270963,182.31,182.3,2.745]
[1730176437276,5.90270963,182.31,182.29,2.7451]
[1730176437480,5.90270963,182.3,182.29,2.7451]
[1730176438486,5.90270963,182.3,182.25,3.6991]
[1730176438783,2.79241929,182.35,182.28,2.7453]
[1730176438784,2.7444,182.34,182.28,2.7453]
[1730176438981,4.4,182.33,182.28,2.7453]
[1730176439184,2.7447,182.32,182.26,2.7456]
[1730176439386,4.4,182.33,182.26,2.7456]
[1730176440176,5.90270963,182.27,182.26,2.7456]
[1730176440376,10.30270963,182.27,182.24,2.7458]
[1730176440577,5.90270963,182.24,182.2,3.7863]
[1730176441080,4.4,182.27,182.22,2.7461]
[1730176441279,4.4,182.27,182.11,479.88840951]
[1730176441477,4.4,182.27,182.15,2.4646]
[1730176441871,2.746,182.24,182.17,2.747]
[1730176442082,4.4,182.23,182.15,2.4646]
[1730176442283,5.90270963,182.17,182.15,2.4646]
[1730176442484,4.4,182.16,182.15,5.2119]
[1730176443497,10.30270963,182.16,182.15,2.7473]
[1730176443784,10.30270963,182.16,182.08,2.4912]
[1730176444085,5.90270963,182.14,182.08,3.6938]
[1730176444287,2.3216,182.26,182.05,340.061]
[1730176444288,5.90270963,182.11,182.05,340.061]
[1730176444587,4.4,182.1,182.06,3.6821]
[1730176444780,9.23508136,182.14,182.11,2.7479]
[1730176445084,4.4,182.13,182.11,2.7479]
[1730176445479,4.4,182.13,182.1,2.7479]
[1730176448988,9.23508136,182.14,182.06,3.6821]
[1730176449184,9.23508136,182.17,182.14,2.7474]
[1730176449386,4.4,182.16,182.06,3.6821]
[1730176449780,4.4,182.15,182.06,3.6821]
[1730176449983,4.4,182.15,182.13,2.7476]
[1730176450384,9.23508136,182.17,182.07,9.23508136]
[1730176450591,4.4,182.16,182.15,2.7472]
[1730176451189,4.4,182.16,182.07,351.23508136]
[1730176452395,4.4,182.16,182.15,2.7473]
[1730176453393,9.23508136,182.19,182.07,342.0]
[1730176453694,4.4,182.18,182.17,2.7469]
[1730176456186,4.4,182.18,182.16,2.7471]
[1730176461796,4.4,182.18,182.1,9.23508136]
[1730176462492,4.4,182.18,182.16,2.747]
[1730176466599,10.31226001,182.18,182.16,2.747]
[1730176469203,4.4,182.18,182.16,2.747]
[1730176469407,4.4,182.18,182.13,5.91226001]
[1730176469599,5.91226001,182.2,182.18,2.7468]
[1730176469800,4.4,182.19,182.18,2.7468]
[1730176470895,5.91226001,182.2,182.07,342.0]
[1730176470896,2.75883816,182.25,182.15,5.91226001]
[1730176471096,59.28,182.27,182.2,2.7464]
[1730176471097,5.91226001,182.23,182.2,2.7464]
[1730176471297,5.91226001,182.21,182.13,5.91226001]
[1730176471497,4.4,182.22,182.18,2.7468]
[1730176471812,5.91226001,182.2,182.15,5.91226001]
[1730176472005,5.91226001,182.2,182.14,5.91226001]
[1730176472601,5.91226001,182.19,182.17,2.7468]
[1730176472793,4.4,182.18,182.17,2.7468]
[1730176474201,4.4,182.18,182.14,5.91226001]
[1730176474406,10.31226001,182.18,182.11,5.91226001]
[1730176474613,5.91226001,182.16,182.11,5.91226001]
[1730176474910,5.91226001,182.16,182.14,2.7473]
[1730176475099,5.91226001,182.16,182.11,5.91226001]
[1730176475299,5.91226001,182.16,182.09,2.4333]
[1730176475500,5.91226001,182.16,182.14,2.7473]
[1730176476103,5.91226001,182.15,182.12,2.7476]
[1730176476405,4.4,182.14,182.09,2.4333]
[1730176477306,4.4,182.14,182.1,2.748]
[1730176477505,5.91226001,182.13,182.09,2.4333]
[1730176478197,5.91226001,182.13,182.11,2.7478]
[1730176479007,5.91226001,182.12,182.06,343.2026]
[1730176479200,5.91226001,182.07,182.06,342.0]
[1730176479403,10.31226001,182.07,182.02,2.3973]
[1730176479605,10.31226001,182.07,182.06,2.7486]
[1730176480910,10.31226001,182.07,182.04,2.7488]
[1730176481212,5.91226001,182.05,182.02,2.3973]
[1730176481410,5.91226001,182.03,182.02,5.1465]
[1730176481621,10.31226001,182.03,182.02,2.7492]
[1730176482914,2.4504,182.03,182.02,2.7492]
[1730176483209,5.91226001,182.04,182.0,105.70512464]
[1730176483509,10.31226001,182.04,182.0,105.70512464]
[1730176483716,10.31226001,182.04,182.03,2.7491]
[1730176484203,4.4,182.04,182.03,2.7491]
[1730176490014,5.91226001,182.09,182.06,2.7485]
[1730176490214,5.91226001,182.09,182.03,5.91226001]
[1730176490215,4.4,182.08,182.03,5.91226001]
[1730176490619,5.91226001,182.07,182.03,2.749]
[1730176490818,4.4,182.08,182.03,2.749]
[1730176490819,5.91226001,182.06,182.03,2.749]
[1730176495312,5.91226001,182.06,181.95,345.6262]
[1730176495517,5.91226001,182.04,182.01,2.7493]
[1730176495712,10.31226001,182.03,181.95,345.6262]
[1730176495912,4.4,182.02,181.98,2.7498]
[1730176496112,4.4,182.02,181.97,5.91226001]
[1730176496420,4.4,182.02,181.99,2.7496]
[1730176496925,4.4,182.02,181.96,5.91226001]
[1730176497114,4.4,182.02,181.97,5.91226001]
[1730176497915,4.4,182.02,181.89,4.4]
[1730176497916,5.91226001,182.0,181.89,342.0]
[1730176498119,5.91226001,182.0,181.93,5.91226001]
[1730176498306,5.91226001,182.0,181.97,2.7499]
[1730176499024,5.91226001,182.0,181.97,2.75]
[1730176499518,5.91226001,181.99,181.97,2.75]
[1730176499723,4.4,181.98,181.97,2.75]
[1730176499908,4.4,181.98,181.91,2.4487]
[1730176500109,2.72642915,182.12,181.95,5.91226001]
[1730176500318,5.91226001,182.01,181.95,5.91226001]
[1730176500519,4.4,182.0,181.96,5.91226001]
[1730176501114,4.4,182.0,181.98,2.7497]
[1730176501623,5.91226001,182.03,181.98,5.91226001]
[1730176501924,4.4,182.02,182.0,2.7494]
[1730176502524,4.4,182.02,181.98,5.91226001]
[1730176502833,5.91226001,182.01,181.91,2.4487]
[1730176503125,5.91226001,182.01,181.95,5.91226001]
[1730176503322,5.91226001,182.01,181.91,2.4487]
[1730176503520,5.91226001,182.01,181.97,2.7499]
[1730176503817,5.91226001,182.01,181.96,5.91226001]
[1730176504220,5.91226001,182.01,181.98,2.7498]
[1730176504427,10.31226001,182.02,181.98,2.7498]
[1730176506126,2.78455795,182.08,181.97,5.91226001]
[1730176506332,5.91226001,182.04,182.0,2.7495]
[1730176506528,4.4,182.03,182.0,2.7495]
[1730176508329,11.77335675,182.12,182.0,5.91226001]
[1730176508528,5.91226001,182.07,182.03,2.749]
[1730176508729,4.4,182.06,182.03,2.749]
[1730176509618,6.29600445,182.13,182.03,2.749]
[1730176509823,5.91226001,182.07,182.03,2.749]
[1730176510019,6.29600445,182.13,181.91,348.8487]
[1730176510230,5.91226001,182.09,182.05,2.7487]
[1730176510628,4.4,182.08,182.05,2.7487]
[1730176511727,4.4,182.08,182.06,2.7486]
[1730176512533,4.4,182.08,182.03,5.91226001]
[1730176513330,4.4,182.08,182.05,2.7487]
[1730176514728,79.45076928,182.24,182.07,5.91226001]
[1730176514932,4.4,182.13,182.09,5.91226001]
[1730176515139,10.31226001,182.13,182.08,5.91226001]
[1730176515332,10.31226001,182.13,182.09,2.7481]
[1730176516227,13.05986001,182.13,182.09,2.7481]
[1730176516442,5.91226001,182.12,182.09,2.7481]
[1730176517341,13.05986001,182.13,182.09,2.7481]
[1730176519038,8.65986001,182.13,182.09,2.7481]
[1730176519338,4.4,182.12,182.09,2.7481]
[1730176519538,59.34,182.14,182.11,2.7477]
[1730176519943,4.4,182.13,182.11,2.7477]
[1730176520941,59.34,182.14,182.13,2.7476]
[1730176521140,63.74,182.14,182.13,2.7476]
[1730176521346,4.4,182.14,182.13,2.7476]
[1730176522855,13.0577959,182.22,182.12,5.91226001]
[1730176523044,8.65886001,182.2,182.13,5.91226001]
[1730176523645,4.4,182.19,182.13,5.91226001]
[1730176523847,4.4,182.19,182.15,2.7472]
[1730176524050,4.4,182.19,182.13,5.91226001]
[1730176524347,4.4,182.18,182.16,2.7471]
[1730176524555,4.4,182.17,182.16,2.7471]
[1730176527649,4.4,182.17,182.15,8.65946001]
[1730176530662,4.4,182.17,182.16,5.91226001]
[1730176530850,5.91226001,182.21,182.16,5.91226001]
[1730176531050,4.38,182.2,182.16,8.65926001]
[1730176533350,4.38,182.19,182.16,2.747]
[1730176533548,4.38,182.19,182.16,8.65926001]
[1730176534361,4.38,182.19,182.16,2.747]
[1730176534660,4.38,182.19,182.16,8.65926001]
[1730176537056,4.38,182.19,182.17,5.91226001]
[1730176537761,4.38,182.19,182.17,2.7468]
[1730176540766,4.38,182.19,182.17,8.65906001]
[1730176542565,11.78261213,182.22,182.18,5.91226001]
[1730176542757,11.78261213,182.22,182.07,346.38]
[1730176542758,4.38,182.25,182.21,5.91226001]
[1730176542965,4.38,182.24,182.23,5.91226001]
[1730176543862,5.91226001,182.28,182.23,8.65836001]
[1730176544066,11.78261213,182.32,182.23,8.65836001]
[1730176544067,4.38,182.27,182.23,8.65836001]
[1730176544261,4.38,182.26,182.23,8.65836001]
[1730176544665,5.91226001,182.3,182.25,2.7458]
[1730176544868,4.38,182.29,182.24,5.91226001]
[1730176545058,5.91226001,182.28,182.23,5.91226001]
[1730176545367,5.91226001,182.28,182.24,2.7458]
[1730176547562,4.38,182.27,182.24,2.7458]
[1730176549958,4.38,182.27,182.25,5.91226001]
[1730176551162,4.38,182.27,182.25,8.65786001]
[1730176552570,4.38,182.27,182.25,2.7456]
[1730176559678,4.38,182.27,182.25,8.65786001]
[1730176560567,4.38,182.27,182.16,346.38]
[1730176560778,5.91226001,182.25,182.16,342.0]
[1730176560966,5.91226001,182.25,182.19,5.91226001]
[1730176561169,4.38,182.27,182.19,5.91226001]
[1730176561170,5.91226001,182.24,182.19,5.91226001]
[1730176561380,4.38,182.23,182.2,2.7465]
[1730176561584,4.38,182.23,182.19,5.91226001]
[1730176561884,4.38,182.23,182.2,5.91226001]
[1730176562177,4.38,182.23,182.21,2.7463]
[1730176562571,4.38,182.23,182.2,2.7465]
[1730176563579,4.38,182.23,182.22,2.7462]
[1730176564782,4.38,182.23,182.21,2.7463]
[1730176565083,4.38,182.23,182.19,5.91226001]
[1730176565275,5.91226001,182.22,182.18,5.91226001]
[1730176565481,5.91226001,182.22,182.16,347.91226001]
[1730176565783,5.91226001,182.21,182.17,2.747]
[1730176566980,8.65866001,182.21,182.16,2.7471]
[1730176567175,5.91226001,182.21,182.14,5.91226001]
[1730176567376,5.91226001,182.18,182.13,8.29746001]
[1730176567572,4.38,182.17,182.13,5.1327]
[1730176567781,4.38,182.17,182.13,2.3852]
[1730176568081,5.91226001,182.16,182.13,2.3852]
[1730176568386,5.91226001,182.16,182.13,5.1328]
[1730176569276,5.91226001,182.15,182.08,2.7483]
[1730176569481,5.91226001,182.15,182.1,5.91226001]
[1730176569876,5.91226001,182.13,182.08,5.91226001]
[1730176570083,4.38,182.12,182.08,5.91226001]
[1730176570677,4.38,182.12,182.09,2.7481]
[1730176571779,4.38,182.12,182.1,2.748]
[1730176573784,4.38,182.12,182.09,2.7482]
[1730176574293,4.38,182.12,182.08,5.91226001]
[1730176574482,4.38,182.12,182.09,2.7481]
[1730176574677,10.29226001,182.12,182.06,2.5303]
[1730176574881,10.29226001,182.12,182.06,8.44256001]
[1730176575288,5.91226001,182.09,181.98,447.95759581]
[1730176575591,2.79206703,182.14,182.04,2.7488]
[1730176575592,5.91226001,182.07,182.04,2.7488]
[1730176575790,4.38,182.06,182.04,2.7488]
[1730176576690,4.38,182.06,182.0,1.2185]
[1730176576989,4.38,182.06,182.01,5.91226001]
[1730176577490,4.38,182.06,182.03,2.7489]
[1730176578094,4.38,182.06,182.04,2.7489]
[1730176580487,4.38,182.06,182.0,1.2185]
[1730176580893,5.91226001,182.04,182.0,1.2185]
[1730176581195,5.91226001,182.02,181.99,2.7496]
[1730176581498,4.38,182.01,181.98,2.7497]
[1730176581985,4.38,182.01,181.95,5.91226001]
[1730176582191,4.38,182.01,181.99,2.7497]
[1730176582589,4.38,182.0,181.99,2.7497]
[1730176584399,10.29226001,182.0,181.94,5.91226001]
[1730176585394,10.29226001,182.0,181.97,2.7499]